bitfinex/quotes_ETHUSD_20250428
["timestamp","ask_amount","ask_price","bid_price","bid_amount"]
[1745861578875,5.7346,1759.8,1759.5,5.68325101]
[1745861579075,0.6686,1759.7,1759.4,5.68355938]
[1745861579384,0.6686,1759.7,1759.5,5.68325764]
[1745861580169,5.7346,1759.8,1759.6,5.68289716]
[1745861580675,5.7346,1759.8,1759.7,5.68278683]
[1745861580676,5.066,1759.8,1759.7,5.68278683]
[1745861582780,5.066,1759.8,1759.6,5.68289716]
[1745861582939,5.5726,1759.8,1759.5,5.6833598]
[1745861583140,0.6686,1759.7,1759.5,5.68329722]
[1745861583339,0.6686,1759.7,1759.6,5.68310979]
[1745861583884,5.066,1759.8,1759.7,5.68278683]
[1745861590470,3.6686,1760.1,1759.8,5.68239825]
[1745861590664,5.062,1760.0,1759.8,5.68239825]
[1745861591741,5.062,1760.0,1759.9,5.68214103]
[1745861593081,5.062,1760.0,1759.8,6.89753213]
[1745861593265,0.6686,1759.9,1759.6,5.68301622]
[1745861593647,0.6686,1759.9,1759.7,5.68275738]
[1745861594269,3.39575421,1759.8,1759.4,5.68350847]
[1745861594873,3.39575421,1759.8,1759.5,5.68320405]
[1745861595069,3.39575421,1759.8,1759.6,5.68308973]
[1745861595262,3.39575421,1759.8,1759.5,11.3664081]
[1745861595460,3.39575421,1759.8,1759.5,5.68320405]
[1745861596474,0.6686,1759.9,1759.6,5.68308373]
[1745861596882,0.6686,1759.9,1759.5,5.68320405]
[1745861597082,3.39575421,1759.8,1759.4,5.68360719]
[1745861597262,0.6686,1759.7,1759.4,5.6835293]
[1745861597462,5.062,1759.6,1759.5,5.68339225]
[1745861601269,5.062,1759.6,1759.4,5.6835293]
[1745861601992,5.062,1759.6,1759.5,5.68343279]
[1745861602288,5.062,1759.6,1759.5,6.820129]
[1745861602462,5.062,1759.6,1759.5,7.635129]
[1745861604189,5.062,1759.6,1759.5,8.185129]
[1745861604365,3.6686,1760.1,1759.8,5.68225244]
[1745861604569,5.058,1760.0,1759.9,5.68214103]
[1745861604763,0.6686,1760.2,1760.0,5.68180183]
[1745861604963,5.058,1760.1,1760.0,5.68180183]
[1745861605183,17.064,1760.3,1760.1,5.68149536]
[1745861605384,5.058,1760.1,1760.0,5.68164885]
[1745861606662,5.058,1760.1,1760.0,6.81801319]
[1745861607396,5.058,1760.1,1760.0,1.13636434]
[1745861607698,5.058,1760.1,1760.0,6.81818252]
[1745861619712,5.058,1760.1,1760.0,7.56828252]
[1745861621226,5.058,1760.1,1760.0,8.11828252]
[1745861621939,17.064,1760.3,1760.2,5.68117259]
[1745861622081,22.121,1760.3,1760.2,7.70212435]
[1745861622522,22.121,1760.3,1760.2,6.87242435]
[1745861624792,5.057,1760.3,1760.2,6.87242435]
[1745861625919,5.7256,1760.3,1760.1,5.68134499]
[1745861626429,5.7256,1760.3,1760.1,5.68128096]
[1745861626729,5.7256,1760.3,1760.1,11.36258273]
[1745861627027,5.7256,1760.3,1760.2,5.68117259]
[1745861627237,5.057,1760.3,1760.2,5.68117259]
[1745861627792,5.057,1760.3,1760.1,5.68128096]
[1745861627992,5.057,1760.3,1760.1,6.41804549]
[1745861628289,5.057,1760.3,1760.2,5.68117259]
[1745861629323,5.057,1760.3,1760.1,6.41804549]
[1745861629634,5.057,1760.3,1760.0,7.36798344]
[1745861630126,5.057,1760.3,1760.0,13.04957469]
[1745861630624,5.057,1760.3,1760.0,7.36795559]
[1745861630830,5.057,1760.3,1760.1,5.68129792]
[1745861631009,5.057,1760.3,1760.0,7.3680107]
[1745861631201,5.057,1760.3,1760.0,13.04960003]
[1745861631521,5.057,1760.3,1760.1,5.68148479]
[1745861632416,5.057,1760.3,1760.1,11.36283243]
[1745861632720,5.057,1760.3,1760.1,5.68134764]
[1745861633508,5.057,1760.3,1760.0,7.36803113]
[1745861634132,5.057,1760.3,1760.0,13.04962395]
[1745861634531,5.057,1760.3,1760.1,5.68147783]
[1745861635042,5.057,1760.3,1760.0,1.13636434]
[1745861635230,5.057,1760.3,1760.0,5.68168166]
[1745861635599,5.057,1760.3,1760.0,11.36330259]
[1745861636101,5.057,1760.3,1760.1,5.68145878]
[1745861636330,5.057,1760.3,1760.1,5.68129292]
[1745861636546,5.057,1760.3,1760.2,5.68117259]
[1745861637335,5.057,1760.3,1760.2,6.89832914]
[1745861638126,5.057,1760.3,1760.2,7.44832914]
[1745861638501,5.057,1760.3,1760.2,8.22232914]
[1745861639202,5.057,1760.3,1760.2,7.67232914]
[1745861640343,5.057,1760.3,1760.2,6.89832914]
[1745861640545,5.7256,1760.3,1760.0,0.7832]
[1745861640727,5.057,1760.3,1760.2,5.68117259]
[1745861643574,5.057,1760.3,1760.1,5.68134745]
[1745861643575,5.7256,1760.3,1760.1,5.68134745]
[1745861643728,9.12135421,1760.3,1759.9,5.68198411]
[1745861643918,9.12135421,1760.3,1759.9,6.25013864]
[1745861644254,9.12135421,1760.3,1760.0,5.68176126]
[1745861644418,9.12135421,1760.3,1760.0,5.68161787]
[1745861644622,9.12135421,1760.3,1760.1,5.68139882]
[1745861644839,5.7256,1760.3,1760.1,5.68139882]
[1745861645332,9.12135421,1760.3,1759.9,6.25013752]
[1745861646347,9.12135421,1760.3,1759.9,11.93207397]
[1745861646958,5.7256,1760.3,1760.0,6.87483222]
[1745861647159,5.7256,1760.3,1760.0,12.55646979]
[1745861647324,5.7256,1760.3,1760.1,11.36267657]
[1745861647656,5.057,1760.3,1760.2,5.68117259]
[1745861648361,5.057,1760.3,1760.1,5.68127591]
[1745861648536,5.057,1760.3,1760.1,6.93688586]
[1745861649361,5.7256,1760.3,1759.9,7.03172665]
[1745861649536,5.7256,1760.3,1760.0,5.68170092]
[1745861650377,0.6686,1760.2,1759.8,5.68223371]
[1745861650732,0.6686,1760.2,1759.9,5.68208263]
[1745861651054,0.6686,1760.2,1759.9,6.81851426]
[1745861651225,5.052,1760.1,1759.9,6.81851426]
[1745861651638,5.052,1760.1,1759.9,1.13643163]
[1745861651945,0.6686,1759.9,1759.2,0.2967932]
[1745861652128,4.06435421,1759.5,1759.2,5.98116879]
[1745861652327,5.052,1759.4,1759.1,6.51132019]
[1745861652524,3.39575421,1759.3,1758.9,5.68535475]
[1745861652724,3.39575421,1759.3,1759.0,5.6849398]
[1745861653167,3.39575421,1759.3,1759.0,5.68483022]
[1745861653524,5.052,1759.4,1759.0,5.68483022]
[1745861653729,0.6686,1759.5,1759.1,5.68459736]
[1745861653963,5.053,1759.3,1759.1,5.68459736]
[1745861654462,0.6686,1759.5,1759.2,11.36836227]
[1745861654760,0.6686,1759.5,1759.2,5.68416517]
[1745861655055,5.053,1759.4,1759.3,5.68393909]
[1745861655460,5.053,1759.4,1759.3,6.23407889]
[1745861656061,5.053,1759.4,1759.2,6.51802377]
[1745861656253,5.053,1759.4,1759.2,12.20220865]
[1745861656454,5.053,1759.4,1759.3,5.68407889]
[1745861658358,5.7216,1759.4,1759.2,0.8336394]
[1745861658877,5.7216,1759.4,1759.2,6.51801681]
[1745861659103,5.7216,1759.4,1759.2,0.8336394]
[1745861659363,5.7216,1759.4,1759.2,6.5180257]
[1745861659666,5.7216,1759.4,1759.2,6.51784765]
[1745861659867,5.7216,1759.4,1759.3,5.68407889]
[1745861660236,5.7216,1759.4,1759.2,6.51784765]
[1745861660836,5.7216,1759.4,1759.3,5.68407889]
[1745861661050,5.054,1759.4,1759.3,5.68407889]
[1745861662458,17.7236,1759.8,1759.3,7.67096718]
[1745861662772,5.054,1759.7,1759.6,5.68283732]
[1745861663071,5.054,1759.7,1759.5,5.68322511]
[1745861664966,5.054,1759.7,1759.6,5.68310979]
[1745861665158,5.054,1759.7,1759.5,5.68322511]
[1745861665660,17.7236,1759.8,1759.5,11.36642377]
[1745861665868,5.05,1759.7,1759.6,5.68295927]
[1745861666242,5.05,1759.7,1759.5,5.68319866]
[1745861666751,5.05,1759.7,1759.5,11.36643267]
[1745861666950,5.05,1759.7,1759.6,5.68310979]
[1745861668683,5.05,1759.7,1759.6,7.61356782]
[1745861669381,6.9560069,1760.2,1759.9,5.68214103]
[1745861669595,17.062,1760.1,1759.9,5.68214103]
[1745861669743,22.112,1760.1,1760.0,5.68181818]
[1745861670479,22.112,1760.1,1760.0,6.23181818]
[1745861670778,24.0180069,1760.6,1760.3,5.68065183]
[1745861670983,5.05,1760.5,1760.3,11.36130073]
[1745861671166,5.05,1760.5,1760.3,5.68063922]
[1745861671500,17.062,1760.6,1760.4,5.68052135]
[1745861671777,5.049,1760.5,1760.4,5.68052135]
[1745861674376,5.049,1760.5,1760.4,6.81663449]
[1745861674696,3.0,1761.0,1760.7,5.67950882]
[1745861674697,3.6686,1761.0,1760.7,5.67950882]
[1745861674846,5.049,1760.9,1760.7,5.67935682]
[1745861676782,5.049,1760.9,1760.8,5.67923671]
[1745861676978,5.049,1760.9,1760.7,5.67940017]
[1745861677282,5.048,1760.8,1760.7,5.67940017]
[1745861677458,5.048,1760.8,1760.7,6.24734019]
[1745861679879,17.7266,1761.0,1760.7,6.24734019]
[1745861680179,5.047,1760.9,1760.8,5.67911231]
[1745861680385,5.047,1760.9,1760.7,6.24732437]
[1745861680563,5.047,1760.9,1760.7,11.92670255]
[1745861680893,5.047,1760.9,1760.8,5.67923671]
[1745861681391,17.058,1761.0,1760.9,5.67891419]
[1745861681558,22.105,1761.0,1760.9,5.67891419]
[1745861681962,17.058,1761.0,1760.9,5.67891419]
[1745861682172,22.105,1761.0,1760.9,5.67891419]
[1745861683871,17.058,1761.0,1760.9,5.67891419]
[1745861684102,22.105,1761.0,1760.9,7.01581086]
[1745861684772,17.058,1761.0,1760.9,7.01581086]
[1745861684985,22.105,1761.0,1760.9,7.01581086]
[1745861688393,9.9560069,1761.3,1761.1,5.67822879]
[1745861688599,5.047,1761.2,1761.1,7.01796926]
[1745861688891,24.0070069,1761.7,1761.4,5.67707054]
[1745861689187,5.046,1761.6,1761.5,5.6768418]
[1745861689994,20.43784824,1761.7,1761.5,5.6768418]
[1745861690194,5.046,1761.6,1761.5,5.6768418]
[1745861690351,5.046,1761.6,1761.4,5.67715561]
[1745861690555,5.046,1761.6,1761.4,6.81254904]
[1745861690870,5.046,1761.6,1761.4,6.81253542]
[1745861691071,5.046,1761.6,1761.5,5.67697984]
[1745861691284,5.046,1761.6,1761.4,5.67707435]
[1745861691596,5.046,1761.6,1761.4,11.35421375]
[1745861691761,5.046,1761.6,1761.5,5.67697984]
[1745861692390,5.046,1761.6,1761.4,11.35416474]
[1745861692596,5.046,1761.6,1761.4,1.13541647]
[1745861693591,17.051,1761.7,1761.4,1.13541647]
[1745861693791,22.097,1761.7,1761.4,1.13541647]
[1745861695483,22.097,1761.7,1761.4,6.81268448]
[1745861696317,22.097,1761.7,1761.4,12.48983688]
[1745861696493,22.097,1761.7,1761.5,1.24898369]
[1745861696790,22.097,1761.7,1761.4,5.6771524]
[1745861697180,17.051,1761.7,1761.6,5.67665758]
[1745861697393,22.092,1761.7,1761.6,5.67665758]
[1745861697779,22.092,1761.7,1761.5,12.12489068]
[1745861697977,22.092,1761.7,1761.6,6.88914665]
[1745861699193,22.092,1761.7,1761.6,1.21248907]
[1745861699394,22.7606,1761.7,1761.3,1.3579]
[1745861699703,22.7606,1761.7,1761.4,5.67725192]
[1745861700982,22.7606,1761.7,1761.4,11.35436493]
[1745861701313,22.092,1761.7,1761.5,5.67677528]
[1745861701491,22.092,1761.7,1761.4,5.67710438]
[1745861701694,22.092,1761.7,1761.4,6.94834863]
[1745861701893,22.092,1761.7,1761.4,6.94833368]
[1745861702713,22.092,1761.7,1761.4,1.27124425]
[1745861703017,0.6686,1761.6,1761.2,5.67774146]
[1745861703177,22.092,1761.7,1761.5,5.67686151]
[1745861703991,22.092,1761.7,1761.4,6.49769166]
[1745861704416,22.092,1761.7,1761.5,5.67693852]
[1745861704617,22.092,1761.7,1761.4,6.49769166]
[1745861706718,22.092,1761.7,1761.4,6.49755201]
[1745861707519,22.092,1761.7,1761.4,6.49748075]
[1745861707720,22.092,1761.7,1761.5,5.67683359]
[1745861707916,22.092,1761.7,1761.5,5.676823]
[1745861708218,22.092,1761.7,1761.5,11.35358166]
[1745861708408,5.041,1761.7,1761.5,5.67675866]
[1745861710305,5.041,1761.7,1761.4,7.1472448]
[1745861710998,5.7096,1761.7,1761.4,0.64974808]
[1745861711298,5.7096,1761.7,1761.3,6.5012125]
[1745861711647,5.7096,1761.7,1761.5,5.67697635]
[1745861711917,5.04,1761.6,1761.5,5.67697635]
[1745861712095,5.04,1761.7,1761.5,5.67697635]
[1745861712600,5.04,1761.7,1761.6,5.67665758]
[1745861712799,5.04,1761.7,1761.6,1.13536339]
[1745861713408,5.04,1761.7,1761.3,6.50103505]
[1745861713614,8.42716766,1761.7,1761.4,5.6772843]
[1745861713794,8.42716766,1761.7,1761.3,6.50102218]
[1745861714001,8.42716766,1761.7,1761.3,6.50100251]
[1745861714411,8.42716766,1761.7,1761.4,5.67730048]
[1745861714607,8.42716766,1761.7,1761.4,6.89513078]
[1745861715525,5.04,1761.6,1761.4,12.5722513]
[1745861715936,5.04,1761.6,1761.4,6.89495082]
[1745861716147,5.04,1761.6,1761.5,5.67697984]
[1745861719341,3.0,1762.1,1761.8,5.67598736]
[1745861719543,5.04,1762.1,1762.0,5.67525035]
[1745861719750,5.04,1762.1,1762.0,6.22525035]
[1745861720611,5.04,1762.1,1762.0,0.55]
[1745861720846,5.04,1762.1,1762.0,6.22536889]
[1745861721343,5.04,1762.1,1762.0,7.47222004]
[1745861721524,5.04,1762.1,1762.0,8.27822004]
[1745861724748,3.38716766,1762.4,1762.0,13.95358893]
[1745861724952,5.039,1762.3,1762.2,5.6745156]
[1745861725543,5.039,1762.3,1762.2,6.80945738]
[1745861726347,5.039,1762.3,1762.2,1.13494178]
[1745861727047,8.42616766,1762.3,1761.8,6.8257]
[1745861727351,3.38716766,1762.2,1761.9,5.67569101]
[1745861727543,3.38716766,1762.2,1762.0,5.67531534]
[1745861728120,3.38716766,1762.2,1761.8,1.3457]
[1745861728338,3.38716766,1762.0,1761.7,5.6761206]
[1745861728730,3.38716766,1762.0,1761.8,5.67599686]
[1745861729619,3.38716766,1762.6,1761.7,0.55]
[1745861729620,5.035,1761.9,1761.7,0.55]
[1745861729817,8.42216766,1761.9,1761.5,12.11633207]
[1745861730023,8.42216766,1761.9,1761.6,5.67647525]
[1745861730333,8.42216766,1761.9,1761.7,5.67623253]
[1745861730539,8.42216766,1761.9,1761.6,1.21159517]
[1745861730859,8.42216766,1761.9,1761.4,12.51331841]
[1745861731061,3.38716766,1761.7,1761.4,12.51331841]
[1745861731382,3.38716766,1761.5,1761.2,11.35561962]
[1745861731525,3.38716766,1761.5,1761.3,5.67746098]
[1745861732160,3.38716766,1761.7,1761.4,5.67730214]
[1745861732460,3.38716766,1761.7,1761.4,7.6188023]
[1745861733034,5.035,1761.9,1761.6,5.67664862]
[1745861733035,3.38716766,1761.9,1761.6,5.67664862]
[1745861733326,5.035,1762.1,1761.9,5.67542002]
[1745861734221,3.0,1762.4,1761.9,5.67542002]
[1745861734369,5.035,1762.2,1761.9,5.67542002]
[1745861734672,5.035,1762.2,1761.9,6.24296202]
[1745861736353,4.2670995,1762.2,1761.9,6.24296202]
[1745861736754,4.2670995,1762.2,1762.0,6.45132272]
[1745861736958,5.035,1762.3,1762.1,5.6748972]
[1745861737471,5.035,1762.3,1762.0,6.45128883]
[1745861737672,5.035,1762.3,1762.1,0.64512888]
[1745861737833,5.035,1762.3,1762.1,6.32017091]
[1745861738040,5.035,1762.3,1762.1,0.64512888]
[1745861738560,5.02834267,1762.3,1762.0,0.7761]
[1745861739197,5.02834267,1762.3,1761.9,0.567542]
[1745861739345,5.02834267,1762.3,1761.9,6.2431137]
[1745861739540,5.02834267,1762.3,1761.9,0.567542]
[1745861739846,5.02834267,1762.3,1761.9,11.91845789]
[1745861740042,5.02834267,1762.3,1762.0,1.19184579]
[1745861740246,5.02834267,1762.3,1761.9,0.567542]
[1745861740667,6.2663413,1762.2,1761.8,5.67581863]
[1745861740847,6.2663413,1762.2,1761.8,0.55]
[1745861741048,6.2663413,1762.2,1761.7,0.8304]
[1745861741266,6.2663413,1762.2,1761.6,5.67647612]
[1745861741973,6.2663413,1762.0,1761.5,18.21280408]
[1745861742180,5.035,1761.9,1761.6,7.49781529]
[1745861742375,5.035,1761.9,1761.6,1.82128041]
[1745861742581,5.035,1761.9,1761.6,7.49792645]
[1745861743056,5.024231,1761.9,1761.6,7.49792645]
[1745861743777,5.024231,1761.9,1761.7,5.67631487]
[1745861743964,5.024231,1761.9,1761.8,6.79364465]
[1745861744479,5.024231,1761.9,1761.8,7.58234465]
[1745861744667,6.2663413,1762.4,1762.0,5.67528856]
[1745861744873,5.035,1762.2,1762.0,5.67528856]
[1745861745182,11.3013413,1762.2,1761.8,7.58213035]
[1745861745491,11.3013413,1762.2,1761.9,5.67555631]
[1745861745678,11.3013413,1762.2,1761.9,6.43376935]
[1745861745846,11.3013413,1762.2,1762.0,0.55]
[1745861745847,5.035,1762.2,1762.0,0.55]
[1745861746045,5.035,1762.4,1762.3,5.67437319]
[1745861746469,6.2663413,1762.8,1762.3,6.22423495]
[1745861746669,5.035,1762.7,1762.4,5.67406236]
[1745861746856,5.035,1762.7,1762.3,6.22423495]
[1745861747273,6.2663413,1762.6,1762.2,5.67452031]
[1745861747673,6.2663413,1762.6,1762.2,11.34904114]
[1745861747872,6.2663413,1762.6,1762.2,6.94302087]
[1745861748183,5.035,1762.7,1762.5,5.67375253]
[1745861748489,5.035,1762.7,1762.4,5.67387319]
[1745861749577,5.035,1762.7,1762.3,6.22440276]
[1745861749779,6.2663413,1762.6,1762.2,6.94305492]
[1745861749999,6.2663413,1762.6,1762.3,0.69430549]
[1745861752310,6.2663413,1762.6,1762.2,6.94305492]
[1745861752311,6.2663413,1762.6,1762.2,1.26850411]
[1745861752619,6.2663413,1762.6,1762.1,5.67485645]
[1745861752828,6.2663413,1762.6,1762.2,5.67452167]
[1745861753128,6.2663413,1762.6,1762.2,6.49622167]
[1745861753292,5.035,1762.7,1762.3,5.67421788]
[1745861753904,5.035,1762.7,1762.2,6.49622167]
[1745861754106,6.2663413,1762.6,1762.2,12.56617786]
[1745861754423,6.2663413,1762.6,1762.3,5.67438743]
[1745861754932,6.2663413,1762.6,1762.2,6.89168683]
[1745861755080,6.2663413,1762.4,1762.1,5.67486535]
[1745861755285,6.2663413,1762.4,1762.1,5.67483303]
[1745861755593,6.2663413,1762.4,1762.2,5.67462828]
[1745861756614,6.2663413,1762.4,1762.0,1.3694]
[1745861756615,6.2663413,1762.4,1762.0,0.8194]
[1745861756848,5.03,1762.3,1762.2,5.67472477]
[1745861758418,5.03,1762.3,1762.2,6.80967473]
[1745861758816,9.2663413,1762.8,1762.4,5.67402287]
[1745861759019,3.0,1762.6,1762.4,5.67402287]
[1745861759220,3.0,1762.6,1762.3,6.4915879]
[1745861759434,3.0,1762.6,1762.3,0.55]
[1745861759833,9.2663413,1762.6,1762.3,0.55]
[1745861760144,10.69597543,1762.6,1762.1,6.45292191]
[1745861760641,10.69597543,1762.6,1762.2,5.67458078]
[1745861761627,9.2663413,1762.6,1762.2,5.67450499]
[1745861761832,9.2663413,1762.6,1762.3,5.67427675]
[1745861762032,6.2663413,1762.6,1762.3,5.67427675]
[1745861762659,6.2663413,1762.6,1762.3,11.34855155]
[1745861762815,6.2663413,1762.6,1762.2,11.34905322]
[1745861763009,6.2663413,1762.6,1762.2,6.88722732]
[1745861764309,6.2663413,1762.6,1762.3,5.67417798]
[1745861764510,6.2663413,1762.6,1762.4,5.67407007]
[1745861764923,6.2663413,1762.6,1762.3,5.67417798]
[1745861765628,6.25544821,1762.6,1762.3,5.67417798]
[1745861766442,6.25544821,1762.6,1762.3,6.93032284]
[1745861769552,3.38390928,1762.5,1762.3,6.93032284]
[1745861770637,3.38390928,1762.5,1762.4,5.67408079]
[1745861770837,5.03,1762.6,1762.5,5.67354625]
[1745861771652,5.03,1762.6,1762.4,6.99763764]
[1745861771877,3.38390928,1762.5,1762.3,6.93039004]
[1745861772082,3.38390928,1762.5,1762.4,0.693039]
[1745861772247,8.41390928,1762.6,1762.4,6.36696668]
[1745861772448,8.41390928,1762.6,1762.4,0.693039]
[1745861772748,8.41390928,1762.6,1762.4,6.36699998]
[1745861772954,8.41390928,1762.6,1762.4,0.693039]
[1745861773574,8.41390928,1762.6,1762.4,5.6738114]
[1745861773981,8.41390928,1762.6,1762.4,11.34771897]
[1745861774278,8.40497147,1762.6,1762.4,5.6738114]
[1745861774843,8.40497147,1762.6,1762.5,5.67375886]
[1745861775655,5.02106219,1762.6,1762.4,6.4318114]
[1745861775855,5.02106219,1762.6,1762.4,7.12999254]
[1745861776057,3.38390928,1762.5,1762.4,6.92199254]
[1745861776782,3.38390928,1762.5,1762.4,6.37199254]
[1745861777457,5.02106219,1762.6,1762.5,5.67375886]
[1745861778364,5.02106219,1762.6,1762.4,6.37199254]
[1745861778546,3.38390928,1762.5,1762.3,5.67421882]
[1745861779049,3.38390928,1762.5,1762.4,5.67408079]
[1745861782523,3.38390928,1762.5,1762.3,5.67421882]
[1745861783014,3.38390928,1762.5,1762.1,0.8244]
[1745861783015,3.37430503,1762.5,1762.1,6.49943751]
[1745861783209,3.38390928,1762.3,1762.1,12.17426024]
[1745861783415,3.38390928,1762.3,1762.2,5.67472477]
[1745861784626,3.38390928,1762.5,1762.3,5.67438452]
[1745861785426,5.03,1762.4,1762.3,5.67438452]
[1745861786326,5.03,1762.4,1762.3,6.22438452]
[1745861786501,5.03,1762.4,1762.3,7.41429545]
[1745861786907,5.03,1762.4,1762.3,8.16709545]
[1745861788747,17.034,1763.1,1762.7,5.67305971]
[1745861788949,8.40990928,1763.0,1762.7,5.67305971]
[1745861789503,3.38390928,1762.8,1762.3,14.21221115]
[1745861789747,3.38390928,1762.8,1762.4,7.09527986]
[1745861789949,3.38390928,1762.8,1762.4,7.09514242]
[1745861790244,3.38390928,1762.8,1762.4,12.76897683]
[1745861790448,3.38390928,1762.8,1762.5,5.67359173]
[1745861790737,3.38390928,1762.8,1762.5,5.67355528]
[1745861790907,3.38390928,1762.8,1762.5,6.38303292]
[1745861791119,3.38390928,1762.8,1762.6,5.67341132]
[1745861792121,3.38390928,1762.8,1762.6,5.67327076]
[1745861792342,3.38390928,1762.8,1762.6,11.34652942]
[1745861792498,3.38390928,1762.8,1762.6,11.34649001]
[1745861792702,3.38390928,1762.8,1762.7,5.6731151]
[1745861792941,3.38390928,1763.0,1762.8,5.67276506]
[1745861793126,5.026,1762.9,1762.7,6.80774971]
[1745861793329,5.026,1763.2,1763.1,5.67179179]
[1745861793515,5.026,1763.2,1763.0,5.67191515]
[1745861793718,5.026,1763.2,1762.9,6.4782457]
[1745861794202,3.38390928,1763.1,1762.7,6.48923823]
[1745861794615,3.38390928,1763.1,1762.7,12.16211915]
[1745861795047,3.38390928,1763.1,1762.7,6.48939449]
[1745861795254,3.38390928,1763.1,1762.7,5.67309449]
[1745861795846,3.38390928,1763.1,1762.7,5.6729035]
[1745861796028,3.38390928,1763.1,1762.6,13.0695382]
[1745861796358,3.38390928,1763.1,1762.8,5.67279094]
[1745861797753,3.38390928,1763.1,1762.6,14.4907746]
[1745861797958,3.38390928,1763.1,1762.7,5.67298589]
[1745861798120,3.38390928,1763.1,1762.7,11.34590157]
[1745861798456,3.38390928,1763.1,1762.8,5.6727005]
[1745861799060,3.38390928,1763.1,1762.9,5.67233477]
[1745861799229,3.38390928,1763.1,1762.8,5.6727005]
[1745861799423,3.38390928,1763.1,1762.8,11.34532796]
[1745861799630,8.40990928,1763.2,1762.9,5.67226886]
[1745861800128,8.40990928,1763.2,1762.9,5.6722551]
[1745861800449,8.40990928,1763.2,1762.9,11.3445569]
[1745861800645,8.40990928,1763.2,1762.8,6.80710393]
[1745861800850,8.40990928,1763.2,1762.9,5.67234563]
[1745861801556,8.40990928,1763.2,1762.8,5.67257113]
[1745861802241,8.40990928,1763.2,1762.9,5.67235555]
[1745861803870,8.40990928,1763.2,1762.8,5.67264221]
[1745861804071,3.38390928,1763.0,1762.8,5.67264221]
[1745861804371,3.38390928,1763.0,1762.7,5.67299043]
[1745861804682,3.38390928,1763.0,1762.6,5.67338322]
[1745861804683,3.38390928,1762.8,1762.6,5.67338322]
[1745861804841,8.40890928,1762.8,1762.6,5.67339759]
[1745861805471,8.40890928,1762.8,1762.4,5.6738626]
[1745861805651,8.40890928,1762.8,1762.5,5.67362877]
[1745861810716,3.38390928,1762.6,1762.2,0.8065]
[1745861811015,3.38390928,1762.6,1762.4,5.67398794]
[1745861811223,5.025,1763.6,1763.1,5.67182204]
[1745861811385,3.38390928,1763.5,1763.2,5.67131646]
[1745861812086,3.38390928,1763.5,1763.2,5.67149803]
[1745861812500,5.025,1763.4,1763.2,5.67149803]
[1745861812706,5.025,1763.4,1763.0,6.42872476]
[1745861812890,3.38390928,1763.3,1763.0,5.67192476]
[1745861813515,3.38390928,1763.3,1762.9,5.6724705]
[1745861813750,5.025,1763.2,1762.9,11.34474129]
[1745861813901,5.025,1763.2,1762.9,5.67227079]
[1745861814738,5.025,1763.2,1762.9,5.67224842]
[1745861817914,5.025,1763.2,1762.8,6.49272567]
[1745861818118,3.38390928,1763.1,1762.8,12.16528252]
[1745861818319,3.38390928,1763.1,1762.9,5.67242688]
[1745861819241,5.025,1763.2,1762.8,6.94417034]
[1745861819540,0.5025,1763.6,1763.1,0.55]
[1745861819742,3.0,1763.4,1763.1,6.22169463]
[1745861820044,8.40490928,1763.5,1763.2,5.67149738]
[1745861820431,3.38390928,1763.3,1763.0,5.67194999]
[1745861820737,3.38390928,1763.3,1762.9,6.4850967]
[1745861820949,3.38390928,1763.3,1762.9,13.59100042]
[1745861821247,3.38390928,1763.3,1763.1,5.6718233]
[1745861822031,3.38390928,1763.3,1763.1,5.67163568]
[1745861822344,3.38390928,1763.3,1763.2,5.67150635]
[1745861823459,3.38390928,1763.4,1763.3,5.67097269]
[1745861824148,8.40490928,1763.4,1763.3,5.67097269]
[1745861825135,8.40490928,1763.4,1763.2,5.67150635]
[1745861826261,8.40490928,1763.4,1763.2,11.34278662]
[1745861826416,8.40490928,1763.4,1763.2,5.67128027]
[1745861827648,8.40490928,1763.4,1763.1,5.67166841]
[1745861827857,3.38390928,1763.2,1762.7,6.5021]
[1745861828044,3.38390928,1763.2,1762.9,5.67229652]
[1745861828253,3.38390928,1763.2,1763.0,5.67196872]
[1745861828658,3.38390928,1763.2,1763.0,5.67196578]
[1745861828837,3.38390928,1763.2,1763.1,5.67182803]
[1745861829036,3.38390928,1763.2,1763.0,5.67196578]
[1745861829248,3.38390928,1763.2,1762.9,5.67228825]
[1745861829456,3.38390928,1763.2,1762.9,11.34453538]
[1745861829769,3.38390928,1763.2,1762.9,5.67224713]
[1745861830344,3.38390928,1763.2,1762.7,0.8292]
[1745861830668,3.38390928,1762.8,1762.2,6.49589949]
[1745861830838,3.38390928,1762.5,1762.3,5.67419097]
[1745861831033,5.021,1762.4,1762.3,5.67419097]
[1745861831248,5.021,1762.4,1762.2,0.8213]
[1745861831635,5.021,1762.4,1762.3,5.67440276]
[1745861832436,5.021,1762.4,1762.3,6.8914173]
[1745861844292,5.021,1762.4,1762.3,7.4414173]
[1745861844510,3.0,1762.9,1762.6,0.8244]
[1745861844776,5.022,1762.8,1762.7,5.67289114]
[1745861849985,17.029,1763.1,1762.9,5.67226326]
[1745861850199,17.029,1763.1,1763.0,5.67214974]
[1745861850365,22.047,1763.1,1763.0,5.67214974]
[1745861850553,22.047,1763.1,1763.0,6.22214974]
[1745861850892,22.047,1763.1,1763.0,7.43472104]
[1745861858036,5.017,1763.4,1763.2,0.8245]
[1745861858332,5.017,1763.7,1763.6,5.67022]
[1745861859125,5.017,1763.7,1763.6,6.22022]
[1745861860297,5.017,1763.7,1763.6,7.17083212]
[1745861860932,17.4360992,1764.0,1763.8,5.66951849]
[1745861861093,5.017,1763.9,1763.8,5.66951849]
[1745861862051,5.017,1763.9,1763.7,5.66987582]
[1745861862225,5.017,1763.9,1763.6,0.55]
[1745861862530,5.017,1763.9,1763.6,11.34006346]
[1745861862897,5.017,1763.9,1763.7,5.66986847]
[1745861864032,5.017,1763.9,1763.6,5.67000811]
[1745861864238,5.017,1763.9,1763.6,11.34003413]
[1745861864440,5.017,1763.9,1763.7,5.66967277]
[1745861864651,5.017,1763.9,1763.7,5.66966636]
[1745861864798,5.017,1763.9,1763.8,5.66957704]
[1745861866252,5.017,1763.9,1763.8,6.21957704]
[1745861866411,17.4360992,1764.0,1763.9,6.48545562]
[1745861866613,22.4520992,1764.0,1763.9,7.75595889]